fUST/lending_fUST_20250718
["ID","MTS","AMOUNT","RATE_DAILY","PERIOD"]
[372838819,1752777047898,-460.0,0.00017116,2]
[372838821,1752777047907,-1565.97,0.00017116,2]
[372838823,1752777047917,-460.0,0.00017116,2]
[372838825,1752777047927,-460.0,0.00017116,2]
[372838827,1752777047936,-887.34,0.00017116,2]
[372838829,1752777047945,-685.87,0.00017116,2]
[372838831,1752777047956,-590.75,0.00017117,2]
[372838833,1752777047965,-460.0,0.00017117,2]
[372838835,1752777047975,-460.0,0.0001712,2]
[372838837,1752777047984,-460.0,0.0001712,2]
[372838839,1752777047993,-781.36,0.0001712,2]
[372838841,1752777048002,-460.0,0.0001712,2]
[372838843,1752777048012,-513.45,0.0001712,2]
[372838845,1752777048021,-1623.29,0.0001712,2]
[372838847,1752777048031,-460.0,0.00017123,2]
[372838849,1752777048040,-207.72306818,0.00017123,2]
[372838851,1752777048050,-174.41995147,0.00017123,2]
[372838853,1752777048059,-460.0,0.00017123,2]
[372838855,1752777048068,-460.0,0.00017123,2]
[372838857,1752777048078,-460.0,0.00017123,2]
[372838859,1752777048087,-422.65840735,0.00017123,2]
[372838861,1752777048097,-460.0,0.00017123,2]
[372838864,1752777048107,-460.0,0.00017123,2]
[372838865,1752777048116,-460.0,0.00017123,2]
[372838868,1752777048126,-460.0,0.00017123,2]
[372838869,1752777048135,-455.12051091,0.00017123,2]
[372838871,1752777048145,-460.0,0.00017123,2]
[372838873,1752777048158,-460.0,0.00017123,2]
[372838876,1752777048169,-460.0,0.00017123,2]
[372838877,1752777048178,-460.0,0.00017123,2]
[372838880,1752777048189,-192.788116,0.00017223,2]
[372838881,1752777048198,-192.788116,0.00017223,2]
[372838883,1752777048208,-151.0,0.00017223,2]
[372838885,1752777048218,-151.0,0.00017223,2]
[372838887,1752777048227,-460.0,0.00017384,2]
[372838890,1752777048237,-1124.62,0.00017385,2]
[372838891,1752777048247,-460.0,0.00017385,2]
[372838893,1752777048257,-460.0,0.00017385,2]
[372838895,1752777048266,-460.0,0.00017385,2]
[372838897,1752777048276,-540.39,0.00017385,2]
[372838900,1752777048286,-460.0,0.00017385,2]
[372838902,1752777048295,-541.9,0.00017385,2]
[372838903,1752777048304,-831.11,0.00017385,2]
[372838905,1752777048314,-213.34,0.00017385,2]
[372838908,1752777048323,-460.0,0.00017385,2]
[372838909,1752777048333,-509.45,0.00017385,2]
[372838911,1752777048342,-460.0,0.00017385,2]
[372838914,1752777048351,-460.0,0.00017385,2]
[372838916,1752777048361,-516.75,0.00017385,2]
[372838918,1752777048371,-460.0,0.00017385,2]
[372838920,1752777048380,-617.66,0.00017385,2]
[372838922,1752777048390,-460.0,0.00017385,2]
[372838924,1752777048399,-460.0,0.00017385,2]
[372838926,1752777048408,-312.12986255,0.00017385,2]
[372838928,1752777048418,-460.0,0.00017385,2]
[372838930,1752777048427,-460.0,0.00017385,2]
[372838932,1752777048436,-460.0,0.00017385,2]
[372838934,1752777048446,-1200.95,0.00017385,2]
[372838936,1752777048457,-172.47,0.00017387,2]
[372838938,1752777048467,-460.0,0.00017387,2]
[372838940,1752777048476,-460.0,0.00017387,2]
[372838942,1752777048485,-460.0,0.00017387,2]
[372838944,1752777048496,-460.0,0.00017387,2]
[372838946,1752777048506,-460.0,0.00017387,2]
[372838948,1752777048516,-466.57782817,0.00017387,2]
[372838950,1752777048526,-460.0,0.00017387,2]
[372838952,1752777048536,-460.0,0.00017387,2]
[372838954,1752777048546,-460.0,0.00017388,2]
[372838956,1752777048555,-460.0,0.00017388,2]
[372838958,1752777048564,-460.0,0.00017388,2]
[372838960,1752777048573,-460.0,0.00017388,2]
[372838962,1752777048583,-460.0,0.00017388,2]
[372838964,1752777048594,-460.0,0.00017388,2]
[372838966,1752777048603,-460.0,0.00017388,2]
[372838968,1752777048613,-460.0,0.00017388,2]
[372838970,1752777048622,-563.79720118,0.00017388,2]
[372838972,1752777048631,-460.0,0.00017388,2]
[372838974,1752777048641,-463.75279521,0.00017388,2]
[372838976,1752777048651,-258.66594549,0.00017388,2]
[372838978,1752777048661,-460.0,0.00017388,2]
[372838980,1752777048670,-460.0,0.00017388,2]
[372838982,1752777048680,-460.0,0.00017388,2]
[372838984,1752777048689,-460.0,0.00017388,2]
[372838986,1752777048700,-460.0,0.00017388,2]
[372838988,1752777048710,-460.0,0.00017388,2]
[372838990,1752777048720,-460.0,0.00017388,2]
[372838992,1752777048729,-460.0,0.00017388,2]
[372838994,1752777048739,-460.0,0.00017388,2]
[372838996,1752777048749,-460.0,0.00017388,2]
[372838998,1752777048758,-460.0,0.00017388,2]
[372839000,1752777048768,-460.0,0.00017388,2]
[372839002,1752777048777,-460.0,0.00017388,2]
[372839004,1752777048787,-460.0,0.00017388,2]
[372839007,1752777048796,-460.0,0.00017388,2]
[372839009,1752777048806,-460.0,0.00017388,2]
[372839011,1752777048815,-183.73846794,0.00017388,2]
[372839012,1752777048824,-460.0,0.00017388,2]
[372839015,1752777048834,-460.0,0.00017388,2]
[372839016,1752777048843,-460.0,0.00017389,2]
[372839018,1752777048853,-460.0,0.00017389,2]
[372839020,1752777048863,-460.0,0.00017389,2]
[372839023,1752777048872,-460.0,0.00017389,2]
[372839024,1752777048882,-460.0,0.00017389,2]
[372839026,1752777048891,-460.0,0.00017389,2]
[372839028,1752777048900,-460.0,0.00017389,2]
[372839030,1752777048909,-460.0,0.00017389,2]
[372839032,1752777048919,-460.0,0.00017389,2]
[372839034,1752777048929,-460.0,0.00017389,2]
[372839037,1752777048938,-460.0,0.00017389,2]
[372839039,1752777048949,-460.0,0.00017389,2]
[372839041,1752777048958,-460.0,0.00017389,2]
[372839043,1752777048968,-460.0,0.00017389,2]
[372839044,1752777048977,-460.0,0.00017389,2]
[372839046,1752777048986,-460.0,0.00017389,2]
[372839048,1752777048996,-512.92665653,0.00017389,2]
[372839050,1752777049006,-460.0,0.00017389,2]
[372839053,1752777049015,-460.0,0.00017389,2]
[372839054,1752777049024,-460.0,0.00017389,2]
[372839055,1752777049033,-460.0,0.00017389,2]
[372839056,1752777049042,-460.0,0.00017389,2]
[372839057,1752777049051,-460.0,0.00017389,2]
[372839058,1752777049060,-460.0,0.00017389,2]
[372839059,1752777049069,-460.0,0.00017389,2]
[372839060,1752777049077,-335.49729468,0.0001739,2]
[372839061,1752777049086,-460.0,0.0001739,2]
[372839062,1752777049095,-460.0,0.0001739,2]
[372839063,1752777049104,-460.0,0.0001739,2]
[372839064,1752777049114,-460.0,0.0001739,2]
[372839065,1752777049123,-460.0,0.0001739,2]
[372839066,1752777049132,-460.0,0.0001739,2]
[372839067,1752777049142,-495.0958467,0.0001739,2]
[372839069,1752777049152,-460.0,0.0001739,2]
[372839071,1752777049163,-460.0,0.0001739,2]
[372839072,1752777049172,-460.0,0.0001739,2]
[372839074,1752777049181,-460.0,0.0001739,2]
[372839076,1752777049190,-460.0,0.0001739,2]
[372839078,1752777049201,-460.0,0.0001739,2]
[372839080,1752777049211,-460.0,0.0001739,2]
[372839082,1752777049221,-460.0,0.0001739,2]
[372839084,1752777049231,-460.0,0.0001739,2]
[372839086,1752777049240,-500.46,0.0001739,2]
[372839099,1752777049357,-1565.97,0.0001739,2]
[372839101,1752777049367,-460.0,0.0001739,2]
[372839103,1752777049377,-887.34,0.0001739,2]
[372839105,1752777049386,-685.87,0.0001739,2]
[372839107,1752777049396,-590.75,0.00017391,2]
[372839109,1752777049405,-214.06596458,0.00017391,2]
[372839112,1752777049415,-303.44,0.00017394,2]
[372839114,1752777049426,-781.36,0.00017394,2]
[372839115,1752777049437,-460.0,0.00017394,2]
[372839117,1752777049447,-513.45,0.00017394,2]
[372839120,1752777049458,-1623.29,0.00017394,2]
[372839121,1752777049467,-460.0,0.00017397,2]
[372839123,1752777049476,-460.0,0.00017397,2]
[372839125,1752777049486,-460.0,0.00017397,2]
[372839128,1752777049495,-460.0,0.00017397,2]
[372839129,1752777049505,-465.31814417,0.00017397,2]
[372839131,1752777049514,-460.0,0.00017397,2]
[372839133,1752777049523,-151.0,0.0001753,2]
[372839135,1752777049532,-1124.62,0.00017659,2]
[372839137,1752777049541,-460.0,0.00017659,2]
[372839139,1752777049551,-460.0,0.00017659,2]
[372839141,1752777049560,-541.9,0.00017659,2]
[372839143,1752777049570,-831.11,0.00017659,2]
[372839145,1752777049579,-463.08,0.00017659,2]
[372839147,1752777049588,-509.45,0.00017659,2]
[372839149,1752777049598,-460.0,0.00017659,2]
[372839151,1752777049606,-460.0,0.00017659,2]
[372839153,1752777049616,-516.75,0.00017659,2]
[372839155,1752777049625,-617.66,0.00017659,2]
[372839157,1752777049634,-460.0,0.00017659,2]
[372839159,1752777049643,-460.0,0.00017659,2]
[372839161,1752777049653,-1200.95,0.00017659,2]
[372839163,1752777049662,-460.0,0.00017661,2]
[372839165,1752777049672,-460.0,0.00017661,2]
[372839167,1752777049681,-460.0,0.00017661,2]
[372839169,1752777049691,-460.0,0.00017661,2]
[372839171,1752777049701,-304.71,0.00017661,2]
[372839173,1752777049711,-460.0,0.00017661,2]
[372839175,1752777049722,-460.0,0.00017661,2]
[372839177,1752777049732,-460.0,0.00017662,2]
[372839179,1752777049741,-460.0,0.00017662,2]
[372839181,1752777049751,-460.0,0.00017662,2]
[372839183,1752777049761,-460.0,0.00017662,2]
[372839185,1752777049770,-460.0,0.00017662,2]
[372839187,1752777049779,-460.0,0.00017662,2]
[372839189,1752777049789,-460.0,0.00017662,2]
[372839191,1752777049798,-460.0,0.00017662,2]
[372839193,1752777049807,-584.66,0.00017662,2]
[372839195,1752777049817,-460.0,0.00017662,2]
[372839196,1752777049826,-453.32,0.00017662,2]
[372839198,1752777049837,-460.0,0.00017662,2]
[372839200,1752777049847,-460.0,0.00017662,2]
[372839202,1752777049857,-460.0,0.00017662,2]
[372839204,1752777049866,-460.0,0.00017662,2]
[372839206,1752777049876,-460.0,0.00017662,2]
[372839208,1752777049888,-460.0,0.00017662,2]
[372839210,1752777049898,-460.0,0.00017662,2]
[372839212,1752777049907,-460.0,0.00017662,2]
[372839214,1752777049917,-460.0,0.00017662,2]
[372839216,1752777049926,-460.0,0.00017662,2]
[372839218,1752777049935,-460.0,0.00017662,2]
[372839220,1752777049945,-483.94,0.00017662,2]
[372839222,1752777049956,-460.0,0.00017663,2]
[372839224,1752777049965,-300.99477445,0.00017663,2]
[372839226,1752777049975,-460.0,0.00017663,2]
[372839228,1752777049985,-460.0,0.00017663,2]
[372839230,1752777049994,-460.0,0.00017663,2]
[372839232,1752777050004,-460.0,0.00017663,2]
[372839234,1752777050014,-460.0,0.00017663,2]
[372839236,1752777050023,-470.99375516,0.00017663,2]
[372839238,1752777050033,-460.0,0.00017663,2]
[372839240,1752777050042,-460.0,0.00017663,2]
[372839242,1752777050052,-460.0,0.00017663,2]
[372839244,1752777050062,-460.0,0.00017663,2]
[372839246,1752777050072,-460.0,0.00017663,2]
[372839248,1752777050081,-460.0,0.00017663,2]
[372839250,1752777050091,-460.0,0.00017663,2]
[372839252,1752777050100,-460.0,0.00017663,2]
[372839254,1752777050111,-460.0,0.00017663,2]
[372839256,1752777050120,-460.0,0.00017663,2]
[372839258,1752777050130,-460.0,0.00017663,2]
[372839260,1752777050139,-460.0,0.00017664,2]
[372839262,1752777050149,-460.0,0.00017664,2]
[372839264,1752777050163,-460.0,0.00017664,2]
[372839266,1752777050172,-460.0,0.00017664,2]
[372839268,1752777050181,-460.0,0.00017664,2]
[372839270,1752777050191,-1565.97,0.00017664,2]
[372839272,1752777050203,-460.0,0.00017664,2]
[372839275,1752777050213,-887.34,0.00017664,2]
[372839277,1752777050223,-685.87,0.00017664,2]
[372839279,1752777050235,-590.75,0.00017665,2]
[372839281,1752777050246,-781.36,0.00017668,2]
[372839283,1752777050257,-556.59,0.00017668,2]
[372839284,1752777050266,-513.45,0.00017668,2]
[372839286,1752777050276,-1623.29,0.00017668,2]
[372839288,1752777050287,-460.0,0.00017671,2]
[372839290,1752777050296,-460.0,0.00017671,2]
[372839292,1752777050307,-460.0,0.00017671,2]
[372839294,1752777050316,-220.51795754,0.00017772,2]
[372839296,1752777050325,-214.44804168,0.00017815,2]
[372839298,1752777050335,-476.16111942,0.00017815,2]
[372839301,1752777050345,-160.0,0.00017815,2]
[372839302,1752777050354,-525.67742785,0.00017815,2]
[372839305,1752777050364,-215.59244943,0.00017815,2]
[372839307,1752777050374,-160.0,0.00017815,2]
[372839308,1752777050384,-160.0,0.00017815,2]
[372839311,1752777050394,-160.0,0.00017815,2]
[372839313,1752777050403,-160.0,0.00017815,2]
[372839315,1752777050413,-230.85589339,0.00017815,2]
[372839317,1752777050423,-160.0,0.00017815,2]
[372839319,1752777050432,-839.15451687,0.00017815,2]
[372839321,1752777050442,-12607.95677342,0.00017815,2]
[372839322,1752777050452,-1633.38,0.00017928,3]
[372839324,1752777050462,-816.68,0.00017928,3]
[372839326,1752777050471,-408.34,0.00017928,3]
[372839328,1752777050481,-1124.62,0.00017933,2]
[372839331,1752777050491,-460.0,0.00017933,2]
[372839333,1752777050505,-541.9,0.00017933,2]
[372839334,1752777050515,-831.11,0.00017933,2]
[372839336,1752777050525,-509.45,0.00017933,2]
[372839338,1752777050534,-460.0,0.00017933,2]
[372839340,1752777050543,-516.75,0.00017933,2]
[372839342,1752777050553,-617.66,0.00017933,2]
[372839344,1752777050562,-460.0,0.00017933,2]
[372839346,1752777050571,-460.0,0.00017933,2]
[372839348,1752777050581,-1200.95,0.00017933,2]
[372839350,1752777050591,-460.0,0.00017935,2]
[372839353,1752777050600,-460.0,0.00017935,2]
[372839354,1752777050609,-345.97,0.00017935,2]
[372839356,1752777050619,-268.13040052,0.00017935,2]
[372839358,1752777050628,-460.0,0.00017935,2]
[372839360,1752777050637,-460.0,0.00017935,2]
[372839362,1752777050647,-460.0,0.00017936,2]
[372839364,1752777050655,-460.0,0.00017936,2]
[372839366,1752777050665,-460.0,0.00017936,2]
[372839368,1752777050674,-584.47,0.00017936,2]
[372839370,1752777050683,-460.0,0.00017936,2]
[372839372,1752777050693,-460.0,0.00017936,2]
[372839374,1752777050703,-151.0,0.00017936,2]
[372839376,1752777050713,-274.78,0.00017936,2]
[372839378,1752777050722,-460.0,0.00017936,2]
[372839380,1752777050732,-460.0,0.00017936,2]
[372839382,1752777050741,-460.0,0.00017936,2]
[372839384,1752777050750,-360.47,0.00017936,2]
[372839386,1752777050759,-460.0,0.00017937,2]
[372839388,1752777050769,-460.0,0.00017937,2]
[372839390,1752777050778,-460.0,0.00017937,2]
[372839392,1752777050787,-461.0,0.00017937,2]
[372839394,1752777050797,-460.0,0.00017937,2]
[372839396,1752777050806,-460.0,0.00017937,2]
[372839398,1752777050816,-460.0,0.00017937,2]
[372839400,1752777050825,-460.0,0.00017937,2]
[372839402,1752777050835,-460.0,0.00017937,2]
[372839404,1752777050844,-460.0,0.00017937,2]
[372839406,1752777050853,-460.0,0.00017937,2]
[372839408,1752777050862,-151.0,0.00017937,2]
[372839410,1752777050871,-460.0,0.00017938,2]
[372839412,1752777050881,-460.0,0.00017938,2]
[372839414,1752777050891,-460.0,0.00017938,2]
[372839416,1752777050900,-1565.97,0.00017938,2]
[372839418,1752777050910,-460.0,0.00017938,2]
[372839420,1752777050919,-887.34,0.00017938,2]
[372839422,1752777050928,-685.87,0.00017938,2]
[372839424,1752777050938,-590.75,0.00017939,2]
[372839426,1752777050947,-151.0,0.00017939,2]
[372839428,1752777050958,-151.0,0.00017939,2]
[372839430,1752777050967,-151.0,0.00017939,2]
[372839432,1752777050976,-781.36,0.00017942,2]
[372839434,1752777050986,-513.45,0.00017942,2]
[372839436,1752777050995,-1623.29,0.00017942,2]
[372839438,1752777051004,-460.0,0.00017945,2]
[372839440,1752777051013,-460.0,0.00017945,2]
[372839442,1752777051022,-174.767655,0.00018002,2]
[372839444,1752777051032,-174.767655,0.00018002,2]
[372839446,1752777051041,-151.0,0.00018002,2]
[372839448,1752777051050,-207.4,0.00018002,2]
[372839450,1752777051060,-151.0,0.00018002,2]
[372839452,1752777051069,-151.0,0.00018002,2]
[372839454,1752777051079,-151.0,0.00018002,2]
[372839456,1752777051088,-151.0,0.00018002,2]
[372839458,1752777051097,-151.0,0.00018002,2]
[372839460,1752777051106,-151.0,0.00018002,2]
[372839462,1752777051115,-151.0,0.00018002,2]
[372839464,1752777051124,-151.0,0.00018002,2]
[372839466,1752777051133,-151.0,0.00018002,2]
[372839468,1752777051142,-151.0,0.00018002,2]
[372839470,1752777051154,-151.0,0.00018002,2]
[372839472,1752777051163,-151.0,0.00018002,2]
[372839474,1752777051172,-151.0,0.00018002,2]
[372839476,1752777051182,-151.0,0.00018002,2]
[372839478,1752777051191,-151.0,0.00018002,2]
[372839479,1752777051202,-151.0,0.00018002,2]
[372839481,1752777051212,-151.0,0.00018002,2]
[372839482,1752777051221,-151.0,0.00018002,2]
[372839483,1752777051233,-151.0,0.00018002,2]
[372839484,1752777051245,-151.0,0.00018002,2]
[372839485,1752777051254,-25000.0,0.00018002,2]
[372839486,1752777051263,-5857.68662824,0.00018002,2]
[372839487,1752777051272,-192.788116,0.00018097,2]
[372839488,1752777051281,-192.788116,0.00018097,2]
[372839489,1752777051290,-151.0,0.00018097,2]
[372839490,1752777051299,-151.0,0.00018097,2]
[372839491,1752777051308,-2372.16468111,0.00018177,2]
[372839492,1752777051318,-1680.0,0.00018182,2]
[372839493,1752777051326,-1124.62,0.00018207,2]
[372839494,1752777051336,-460.0,0.00018207,2]
[372839495,1752777051344,-541.9,0.00018207,2]
[372839496,1752777051353,-831.11,0.00018207,2]
[372839497,1752777051362,-509.45,0.00018207,2]
[372839498,1752777051370,-357.58,0.00018207,2]
[372839499,1752777051379,-516.75,0.00018207,2]
[372839500,1752777051388,-617.66,0.00018207,2]
[372839501,1752777051397,-460.0,0.00018207,2]
[372839502,1752777051406,-1200.95,0.00018207,2]
[372839503,1752777051415,-460.0,0.00018209,2]
[372839504,1752777051424,-460.0,0.00018209,2]
[372839505,1752777051433,-460.0,0.00018209,2]
[372839506,1752777051442,-460.0,0.0001821,2]
[372839507,1752777051451,-601.0302941,0.0001821,2]
[372839508,1752777051463,-460.0,0.0001821,2]
[372839509,1752777051472,-460.0,0.0001821,2]
[372839510,1752777051481,-460.0,0.0001821,2]
[372839511,1752777051490,-460.0,0.0001821,2]
[372839512,1752777051498,-460.0,0.0001821,2]
[372839514,1752777051507,-460.0,0.00018211,2]
[372839515,1752777051517,-460.0,0.00018211,2]
[372839516,1752777051526,-460.0,0.00018211,2]
[372839518,1752777051535,-173.43,0.00018211,2]
[372839520,1752777051545,-460.0,0.00018211,2]
[372839522,1752777051555,-460.0,0.00018212,2]
[372839524,1752777051564,-460.0,0.00018212,2]
[372839526,1752777051573,-374.46385169,0.00018212,2]
[372839528,1752777051582,-1565.97,0.00018212,2]
[372839530,1752777051591,-460.0,0.00018212,2]
[372839532,1752777051601,-887.34,0.00018212,2]
[372839534,1752777051610,-685.87,0.00018212,2]
[372839536,1752777051619,-590.75,0.00018213,2]
[372839538,1752777051628,-151.0,0.00018215,2]
[372839540,1752777051637,-151.0,0.00018215,2]
[372839542,1752777051646,-781.36,0.00018216,2]
[372839543,1752777051657,-513.45,0.00018216,2]
[372839545,1752777051668,-1623.29,0.00018216,2]
[372839547,1752777051678,-168.0,0.00018329,2]
[372839549,1752777051688,-151.0,0.00018452,2]
[372839552,1752777051697,-151.0,0.00018452,2]
[372839553,1752777051709,-151.0,0.00018452,2]
[372839555,1752777051718,-151.0,0.00018452,2]
[372839557,1752777051727,-160.0,0.00018453,2]
[372839559,1752777051736,-1124.62,0.00018481,2]
[372839561,1752777051745,-460.0,0.00018481,2]
[372839563,1752777051755,-541.9,0.00018481,2]
[372839565,1752777051764,-831.11,0.00018481,2]
[372839567,1752777051773,-509.45,0.00018481,2]
[372839569,1752777051782,-516.75,0.00018481,2]
[372839571,1752777051791,-617.66,0.00018481,2]
[372839573,1752777051800,-460.0,0.00018481,2]
[372839575,1752777051809,-1200.95,0.00018481,2]
[372839577,1752777051818,-460.0,0.00018483,2]
[372839579,1752777051827,-460.0,0.00018483,2]
[372839581,1752777051836,-460.0,0.00018484,2]
[372839583,1752777051845,-460.0,0.00018484,2]
[372839585,1752777051854,-460.0,0.00018484,2]
[372839587,1752777051864,-466.28,0.00018484,2]
[372839589,1752777051873,-460.0,0.00018484,2]
[372839591,1752777051883,-460.0,0.00018485,2]
[372839593,1752777051892,-460.0,0.00018485,2]
[372839595,1752777051902,-460.0,0.00018485,2]
[372839597,1752777051911,-460.0,0.00018486,2]
[372839599,1752777051921,-460.0,0.00018486,2]
[372839601,1752777051932,-1565.97,0.00018486,2]
[372839603,1752777051941,-460.0,0.00018486,2]
[372839605,1752777051950,-887.34,0.00018486,2]
[372839607,1752777051961,-685.87,0.00018486,2]
[372839609,1752777051971,-590.75,0.00018487,2]
[372839611,1752777051980,-781.36,0.0001849,2]
[372839613,1752777051989,-513.45,0.0001849,2]
[372839615,1752777051998,-1623.29,0.0001849,2]
[372839617,1752777052007,-168.0,0.00018498,2]
[372839619,1752777052016,-12000.79649766,0.0001855,2]
[372839642,1752777052235,-12999.20350234,0.0001855,2]
[372839644,1752777052244,-160.4837518,0.00018614,2]
[372839646,1752777052253,-576.958633,0.00018614,2]
[372839648,1752777052262,-576.958633,0.00018614,2]
[372839650,1752777052272,-159.7589235,0.00018623,2]
[372839652,1752777052281,-159.7589233,0.00018623,2]
[372839654,1752777052291,-153.0,0.00018647,2]
[372839656,1752777052300,-153.0,0.00018647,2]
[372839658,1752777052310,-153.0,0.00018647,2]
[372839660,1752777052319,-387.287709,0.00018696,2]
[372839662,1752777052328,-387.287709,0.00018696,2]
[372839664,1752777052338,-1124.62,0.00018755,2]
[372839666,1752777052347,-460.0,0.00018755,2]
[372839668,1752777052357,-541.9,0.00018755,2]
[372839670,1752777052366,-831.11,0.00018755,2]
[372839672,1752777052375,-509.45,0.00018755,2]
[372839674,1752777052385,-516.75,0.00018755,2]
[372839676,1752777052395,-617.66,0.00018755,2]
[372839678,1752777052404,-460.0,0.00018755,2]
[372839680,1752777052414,-1200.95,0.00018755,2]
[372839682,1752777052423,-250.38,0.00018757,2]
[372839684,1752777052433,-460.0,0.00018758,2]
[372839686,1752777052443,-460.0,0.00018758,2]
[372839688,1752777052453,-460.0,0.00018758,2]
[372839690,1752777052464,-460.0,0.00018758,2]
[372839692,1752777052473,-460.0,0.00018759,2]
[372839694,1752777052483,-433.43257159,0.00018759,2]
[372839696,1752777052492,-460.0,0.00018759,2]
[372839697,1752777052501,-460.0,0.0001876,2]
[372839700,1752777052511,-460.0,0.0001876,2]
[372839701,1752777052520,-1565.97,0.0001876,2]
[372839703,1752777052530,-460.0,0.0001876,2]
[372839706,1752777052539,-887.34,0.0001876,2]
[372839707,1752777052549,-685.87,0.0001876,2]
[372839709,1752777052558,-590.75,0.00018761,2]
[372839711,1752777052568,-781.36,0.00018764,2]
[372839714,1752777052578,-513.45,0.00018764,2]
[372839715,1752777052587,-1623.29,0.00018764,2]
[372839718,1752777052600,-179.91004498,0.00018864,2]
[372839719,1752777052611,-2654.47905016,0.000189,2]
[372839721,1752777052620,-1312.0556965,0.00019,10]
[372839724,1752777052633,-33868.7610777,0.00019,10]
[372839726,1752777052642,-151.0,0.00019,2]
[372839728,1752777052652,-476.16111942,0.00019,10]
[372839730,1752777052661,-151.0,0.00019,2]
[372839732,1752777052671,-151.0,0.00019,2]
[372839734,1752777052681,-151.0,0.00019,2]
[372839736,1752777052690,-260.0,0.00019001,2]
[372839738,1752777052700,-1124.62,0.00019029,2]
[372839740,1752777052710,-211.28,0.00019029,2]
[372839742,1752777052719,-541.9,0.00019029,2]
[372839744,1752777052729,-831.11,0.00019029,2]
[372839746,1752777052738,-509.45,0.00019029,2]
[372839748,1752777052749,-516.75,0.00019029,2]
[372839750,1752777052759,-617.66,0.00019029,2]
[372839752,1752777052768,-460.0,0.00019029,2]
[372839754,1752777052777,-1200.95,0.00019029,2]
[372839756,1752777052786,-460.0,0.00019032,2]
[372839758,1752777052796,-174.767655,0.00019032,2]
[372839760,1752777052806,-174.767655,0.00019032,2]
[372839762,1752777052816,-151.0,0.00019032,2]
[372839764,1752777052825,-460.0,0.00019032,2]
[372839766,1752777052834,-168.64,0.00019032,2]
[372839768,1752777052844,-460.0,0.00019032,2]
[372839770,1752777052853,-460.0,0.00019033,2]
[372839772,1752777052863,-460.0,0.00019033,2]
[372839774,1752777052873,-460.0,0.00019034,2]
[372839776,1752777052882,-460.0,0.00019034,2]
[372839778,1752777052893,-1565.97,0.00019034,2]
[372839780,1752777052904,-460.0,0.00019034,2]
[372839782,1752777052914,-887.34,0.00019034,2]
[372839784,1752777052924,-685.87,0.00019034,2]
[372839786,1752777052934,-590.75,0.00019035,2]
[372839787,1752777052943,-781.36,0.00019038,2]
[372839789,1752777052953,-513.45,0.00019038,2]
[372839792,1752777052963,-1623.29,0.00019038,2]
[372839793,1752777052972,-220.51795754,0.0001908,2]
[372839795,1752777052981,-172.47,0.00019125,2]
[372839798,1752777052990,-500.0,0.00019174,2]
[372839800,1752777053000,-168.0,0.00019177,2]